Workbook

Sheet PERSONAL BUDGET
A1: PERSONAL BUDGET
A3: REVENUE | B3: JAN | C3: FEB | D3: MAR | E3: APR | F3: MAY | G3: JUN | H3: JUL | I3: AUG | J3: SEP | K3: OCT | L3: NOV | M3: DEC | N3: YEAR
A4: INCOME
A5: Wages | B5: $2,600.00 | C5: $2,600.00 | D5: $2,600.00 | N5: =SUM(tblIncome[[#This Row],[Jan]:[Dec]]) -> $7,800.00
A6: Interest/dividends | B6: $649.00 | C6: $313.00 | D6: $664.00 | N6: =SUM(tblIncome[[#This Row],[Jan]:[Dec]]) -> $1,626.00
A7: Miscellaneous | B7: $474.00 | C7: $643.00 | D7: $380.00 | N7: =SUM(tblIncome[[#This Row],[Jan]:[Dec]]) -> $1,497.00
A8: Total | B8: =SUBTOTAL(109,tblIncome[Jan]) -> $3,723.00 | C8: =SUBTOTAL(109,tblIncome[Feb]) -> $3,556.00 | D8: =SUBTOTAL(109,tblIncome[March]) -> $3,644.00 | E8: =SUBTOTAL(109,tblIncome[April]) -> $0.00 | F8: =SUBTOTAL(109,tblIncome[May]) -> $0.00 | G8: =SUBTOTAL(109,tblIncome[June]) -> $0.00 | H8: =SUBTOTAL(109,tblIncome[July]) -> $0.00 | I8: =SUBTOTAL(109,tblIncome[Aug]) -> $0.00 | J8: =SUBTOTAL(109,tblIncome[Sept]) -> $0.00 | K8: =SUBTOTAL(109,tblIncome[Oct]) -> $0.00 | L8: =SUBTOTAL(109,tblIncome[Nov]) -> $0.00 | M8: =SUBTOTAL(109,tblIncome[Dec]) -> $0.00 | N8: =SUBTOTAL(109,tblIncome[Year]) -> $10,923.00
A10: EXPENSES | B10: JAN | C10: FEB | D10: MAR | E10: APR | F10: MAY | G10: JUN | H10: JUL | I10: AUG | J10: SEP | K10: OCT | L10: NOV | M10: DEC | N10: YEAR
A11: HOME
A12: Mortgage | B12: $750.00 | C12: $750.00 | D12: $750.00 | N12: =SUM(tblHome[[#This Row],[Jan]:[Dec]]) -> $2,250.00
A13: Insurance | N13: =SUM(tblHome[[#This Row],[Jan]:[Dec]]) -> $0.00
A14: Repairs | D14: $75.00 | N14: =SUM(tblHome[[#This Row],[Jan]:[Dec]]) -> $75.00
A15: Services | B15: $35.00 | C15: $35.00 | D15: $35.00 | N15: =SUM(tblHome[[#This Row],[Jan]:[Dec]]) -> $105.00
A16: Utilities | B16: $165.00 | C16: $165.00 | D16: $165.00 | N16: =SUM(tblHome[[#This Row],[Jan]:[Dec]]) -> $495.00
A17: Total | B17: =SUBTOTAL(109,tblHome[Jan]) -> $950.00 | C17: =SUBTOTAL(109,tblHome[Feb]) -> $950.00 | D17: =SUBTOTAL(109,tblHome[March]) -> $1,025.00 | E17: =SUBTOTAL(109,tblHome[April]) -> $0.00 | F17: =SUBTOTAL(109,tblHome[May]) -> $0.00 | G17: =SUBTOTAL(109,tblHome[June]) -> $0.00 | H17: =SUBTOTAL(109,tblHome[July]) -> $0.00 | I17: =SUBTOTAL(109,tblHome[Aug]) -> $0.00 | J17: =SUBTOTAL(109,tblHome[Sept]) -> $0.00 | K17: =SUBTOTAL(109,tblHome[Oct]) -> $0.00 | L17: =SUBTOTAL(109,tblHome[Nov]) -> $0.00 | M17: =SUBTOTAL(109,tblHome[Dec]) -> $0.00 | N17: =SUBTOTAL(109,tblHome[Year]) -> $2,925.00
A19: DAILY LIVING
A20: Groceries | B20: $191.00 | C20: $152.00 | D20: $145.00 | N20: =SUM(tblDaily[[#This Row],[Jan]:[Dec]]) -> $488.00
A21: Child care | B21: $200.00 | C21: $200.00 | D21: $200.00 | N21: =SUM(tblDaily[[#This Row],[Jan]:[Dec]]) -> $600.00
A22: Dry cleaning | B22: $20.00 | D22: $20.00 | N22: =SUM(tblDaily[[#This Row],[Jan]:[Dec]]) -> $40.00
A23: Dining out | B23: $55.00 | D23: $56.00 | N23: =SUM(tblDaily[[#This Row],[Jan]:[Dec]]) -> $111.00
A24: Housecleaning service | B24: $25.00 | C24: $17.00 | D24: $7.00 | N24: =SUM(tblDaily[[#This Row],[Jan]:[Dec]]) -> $49.00
A25: Dog walker | B25: $10.00 | C25: $5.00 | D25: $7.00 | N25: =SUM(tblDaily[[#This Row],[Jan]:[Dec]]) -> $22.00
A26: Total | B26: =SUBTOTAL(109,tblDaily[Jan]) -> $501.00 | C26: =SUBTOTAL(109,tblDaily[Feb]) -> $374.00 | D26: =SUBTOTAL(109,tblDaily[March]) -> $435.00 | E26: =SUBTOTAL(109,tblDaily[April]) -> $0.00 | F26: =SUBTOTAL(109,tblDaily[May]) -> $0.00 | G26: =SUBTOTAL(109,tblDaily[June]) -> $0.00 | H26: =SUBTOTAL(109,tblDaily[July]) -> $0.00 | I26: =SUBTOTAL(109,tblDaily[Aug]) -> $0.00 | J26: =SUBTOTAL(109,tblDaily[Sept]) -> $0.00 | K26: =SUBTOTAL(109,tblDaily[Oct]) -> $0.00 | L26: =SUBTOTAL(109,tblDaily[Nov]) -> $0.00 | M26: =SUBTOTAL(109,tblDaily[Dec]) -> $0.00 | N26: =SUBTOTAL(109,tblDaily[Year]) -> $1,310.00
A28: TRANSPORTATION
A29: Gas/fuel | B29: $195.00 | C29: $125.00 | D29: $171.00 | N29: =SUM(tblTransportation[[#This Row],[Jan]:[Dec]]) -> $491.00
A30: Insurance | B30: $165.00 | C30: $165.00 | D30: $165.00 | N30: =SUM(tblTransportation[[#This Row],[Jan]:[Dec]]) -> $495.00
A31: Repairs | N31: =SUM(tblTransportation[[#This Row],[Jan]:[Dec]]) -> $0.00
A32: Car wash/detailing services | B32: $10.00 | N32: =SUM(tblTransportation[[#This Row],[Jan]:[Dec]]) -> $10.00
A33: Parking | B33: $10.00 | C33: $40.00 | D33: $20.00 | N33: =SUM(tblTransportation[[#This Row],[Jan]:[Dec]]) -> $70.00
A34: Public transportation | B34: $20.00 | C34: $40.00 | D34: $30.00 | N34: =SUM(tblTransportation[[#This Row],[Jan]:[Dec]]) -> $90.00
A35: Total | B35: =SUBTOTAL(109,tblTransportation[Jan]) -> $400.00 | C35: =SUBTOTAL(109,tblTransportation[Feb]) -> $370.00 | D35: =SUBTOTAL(109,tblTransportation[March]) -> $386.00 | E35: =SUBTOTAL(109,tblTransportation[April]) -> $0.00 | F35: =SUBTOTAL(109,tblTransportation[May]) -> $0.00 | G35: =SUBTOTAL(109,tblTransportation[June]) -> $0.00 | H35: =SUBTOTAL(109,tblTransportation[July]) -> $0.00 | I35: =SUBTOTAL(109,tblTransportation[Aug]) -> $0.00 | J35: =SUBTOTAL(109,tblTransportation[Sept]) -> $0.00 | K35: =SUBTOTAL(109,tblTransportation[Oct]) -> $0.00 | L35: =SUBTOTAL(109,tblTransportation[Nov]) -> $0.00 | M35: =SUBTOTAL(109,tblTransportation[Dec]) -> $0.00 | N35: =SUBTOTAL(109,tblTransportation[Year]) -> $1,156.00
A37: ENTERTAINMENT
A38: Cable TV | B38: $85.00 | C38: $85.00 | D38: $85.00 | N38: =SUM(tblEntertainment[[#This Row],[Jan]:[Dec]]) -> $255.00
A39: Video/DVD rentals | B39: $7.00 | C39: $8.00 | D39: $9.00 | N39: =SUM(tblEntertainment[[#This Row],[Jan]:[Dec]]) -> $24.00
A40: Movies/plays | B40: $9.00 | C40: $5.00 | D40: $9.00 | N40: =SUM(tblEntertainment[[#This Row],[Jan]:[Dec]]) -> $23.00
A41: Concerts/clubs | B41: $5.00 | C41: $5.00 | D41: $7.00 | N41: =SUM(tblEntertainment[[#This Row],[Jan]:[Dec]]) -> $17.00
A42: Total | B42: =SUBTOTAL(109,tblEntertainment[Jan]) -> $106.00 | C42: =SUBTOTAL(109,tblEntertainment[Feb]) -> $103.00 | D42: =SUBTOTAL(109,tblEntertainment[March]) -> $110.00 | E42: =SUBTOTAL(109,tblEntertainment[April]) -> $0.00 | F42: =SUBTOTAL(109,tblEntertainment[May]) -> $0.00 | G42: =SUBTOTAL(109,tblEntertainment[June]) -> $0.00 | H42: =SUBTOTAL(109,tblEntertainment[July]) -> $0.00 | I42: =SUBTOTAL(109,tblEntertainment[Aug]) -> $0.00 | J42: =SUBTOTAL(109,tblEntertainment[Sept]) -> $0.00 | K42: =SUBTOTAL(109,tblEntertainment[Oct]) -> $0.00 | L42: =SUBTOTAL(109,tblEntertainment[Nov]) -> $0.00 | M42: =SUBTOTAL(109,tblEntertainment[Dec]) -> $0.00 | N42: =SUBTOTAL(109,tblEntertainment[Year]) -> $319.00
A44: HEALTH
A45: Health club dues | B45: $50.00 | C45: $50.00 | D45: $50.00 | N45: =SUM(tblHealth[[#This Row],[Jan]:[Dec]]) -> $150.00
A46: Insurance | B46: $225.00 | C46: $225.00 | D46: $225.00 | N46: =SUM(tblHealth[[#This Row],[Jan]:[Dec]]) -> $675.00
A47: Prescriptions | B47: $100.00 | C47: $100.00 | D47: $100.00 | N47: =SUM(tblHealth[[#This Row],[Jan]:[Dec]]) -> $300.00
A48: Over-the-counter drugs | B48: $6.00 | C48: $2.00 | D48: $9.00 | N48: =SUM(tblHealth[[#This Row],[Jan]:[Dec]]) -> $17.00
A49: Co-payments/out-of-pocket | B49: $20.00 | D49: $41.00 | N49: =SUM(tblHealth[[#This Row],[Jan]:[Dec]]) -> $61.00
A50: Veterinarians/pet medicines | B50: $4.00 | D50: $25.00 | N50: =SUM(tblHealth[[#This Row],[Jan]:[Dec]]) -> $29.00
A51: Life insurance | B51: $55.00 | C51: $55.00 | D51: $55.00 | N51: =SUM(tblHealth[[#This Row],[Jan]:[Dec]]) -> $165.00
A52: Total | B52: =SUBTOTAL(109,tblHealth[Jan]) -> $460.00 | C52: =SUBTOTAL(109,tblHealth[Feb]) -> $432.00 | D52: =SUBTOTAL(109,tblHealth[March]) -> $505.00 | E52: =SUBTOTAL(109,tblHealth[April]) -> $0.00 | F52: =SUBTOTAL(109,tblHealth[May]) -> $0.00 | G52: =SUBTOTAL(109,tblHealth[June]) -> $0.00 | H52: =SUBTOTAL(109,tblHealth[July]) -> $0.00 | I52: =SUBTOTAL(109,tblHealth[Aug]) -> $0.00 | J52: =SUBTOTAL(109,tblHealth[Sept]) -> $0.00 | K52: =SUBTOTAL(109,tblHealth[Oct]) -> $0.00 | L52: =SUBTOTAL(109,tblHealth[Nov]) -> $0.00 | M52: =SUBTOTAL(109,tblHealth[Dec]) -> $0.00 | N52: =SUBTOTAL(109,tblHealth[Year]) -> $1,397.00
A54: VACATIONS
A55: Plane fare | C55: $485.00 | N55: =SUM(tblVacations[[#This Row],[Jan]:[Dec]]) -> $485.00
A56: Accommodations | C56: $245.00 | N56: =SUM(tblVacations[[#This Row],[Jan]:[Dec]]) -> $245.00
A57: Food | C57: $95.00 | N57: =SUM(tblVacations[[#This Row],[Jan]:[Dec]]) -> $95.00
A58: Souvenirs | N58: =SUM(tblVacations[[#This Row],[Jan]:[Dec]]) -> $0.00
A59: Pet boarding | N59: =SUM(tblVacations[[#This Row],[Jan]:[Dec]]) -> $0.00
A60: Rental car | C60: $85.00 | N60: =SUM(tblVacations[[#This Row],[Jan]:[Dec]]) -> $85.00
A61: Total | B61: =SUBTOTAL(109,tblVacations[Jan]) -> $0.00 | C61: =SUBTOTAL(109,tblVacations[Feb]) -> $910.00 | D61: =SUBTOTAL(109,tblVacations[March]) -> $0.00 | E61: =SUBTOTAL(109,tblVacations[April]) -> $0.00 | F61: =SUBTOTAL(109,tblVacations[May]) -> $0.00 | G61: =SUBTOTAL(109,tblVacations[June]) -> $0.00 | H61: =SUBTOTAL(109,tblVacations[July]) -> $0.00 | I61: =SUBTOTAL(109,tblVacations[Aug]) -> $0.00 | J61: =SUBTOTAL(109,tblVacations[Sept]) -> $0.00 | K61: =SUBTOTAL(109,tblVacations[Oct]) -> $0.00 | L61: =SUBTOTAL(109,tblVacations[Nov]) -> $0.00 | M61: =SUBTOTAL(109,tblVacations[Dec]) -> $0.00 | N61: =SUBTOTAL(109,tblVacations[Year]) -> $910.00
A63: RECREATION
A64: Gym fees | N64: =SUM(tblRecreation[[#This Row],[Jan]:[Dec]]) -> $0.00
A65: Sports equipment | N65: =SUM(tblRecreation[[#This Row],[Jan]:[Dec]]) -> $0.00
A66: Team dues | N66: =SUM(tblRecreation[[#This Row],[Jan]:[Dec]]) -> $0.00
A67: Toys/child gear | B67: $39.00 | C67: $33.00 | D67: $40.00 | N67: =SUM(tblRecreation[[#This Row],[Jan]:[Dec]]) -> $112.00
A68: Total | B68: =SUBTOTAL(109,tblRecreation[Jan]) -> $39.00 | C68: =SUBTOTAL(109,tblRecreation[Feb]) -> $33.00 | D68: =SUBTOTAL(109,tblRecreation[March]) -> $40.00 | E68: =SUBTOTAL(109,tblRecreation[April]) -> $0.00 | F68: =SUBTOTAL(109,tblRecreation[May]) -> $0.00 | G68: =SUBTOTAL(109,tblRecreation[June]) -> $0.00 | H68: =SUBTOTAL(109,tblRecreation[July]) -> $0.00 | I68: =SUBTOTAL(109,tblRecreation[Aug]) -> $0.00 | J68: =SUBTOTAL(109,tblRecreation[Sept]) -> $0.00 | K68: =SUBTOTAL(109,tblRecreation[Oct]) -> $0.00 | L68: =SUBTOTAL(109,tblRecreation[Nov]) -> $0.00 | M68: =SUBTOTAL(109,tblRecreation[Dec]) -> $0.00 | N68: =SUBTOTAL(109,tblRecreation[Year]) -> $112.00
A70: DUES/SUBSCRIPTION
A71: Magazines | N71: =SUM(tblDues[[#This Row],[Jan]:[Dec]]) -> $0.00
A72: Newspapers | N72: =SUM(tblDues[[#This Row],[Jan]:[Dec]]) -> $0.00
A73: Internet connection | N73: =SUM(tblDues[[#This Row],[Jan]:[Dec]]) -> $0.00
A74: Public radio | N74: =SUM(tblDues[[#This Row],[Jan]:[Dec]]) -> $0.00
A75: Public television | N75: =SUM(tblDues[[#This Row],[Jan]:[Dec]]) -> $0.00
A76: Religious organizations | B76: $29.00 | C76: $18.00 | D76: $17.00 | N76: =SUM(tblDues[[#This Row],[Jan]:[Dec]]) -> $64.00
A77: Charity | N77: =SUM(tblDues[[#This Row],[Jan]:[Dec]]) -> $0.00
A78: Total | B78: =SUBTOTAL(109,tblDues[Jan]) -> $29.00 | C78: =SUBTOTAL(109,tblDues[Feb]) -> $18.00 | D78: =SUBTOTAL(109,tblDues[March]) -> $17.00 | E78: =SUBTOTAL(109,tblDues[April]) -> $0.00 | F78: =SUBTOTAL(109,tblDues[May]) -> $0.00 | G78: =SUBTOTAL(109,tblDues[June]) -> $0.00 | H78: =SUBTOTAL(109,tblDues[July]) -> $0.00 | I78: =SUBTOTAL(109,tblDues[Aug]) -> $0.00 | J78: =SUBTOTAL(109,tblDues[Sept]) -> $0.00 | K78: =SUBTOTAL(109,tblDues[Oct]) -> $0.00 | L78: =SUBTOTAL(109,tblDues[Nov]) -> $0.00 | M78: =SUBTOTAL(109,tblDues[Dec]) -> $0.00 | N78: =SUBTOTAL(109,tblDues[Year]) -> $64.00
A80: PERSONAL
A81: Clothing | D81: $29.00 | N81: =SUM(tblPersonal[[#This Row],[Jan]:[Dec]]) -> $29.00
A82: Gifts | C82: $35.00 | N82: =SUM(tblPersonal[[#This Row],[Jan]:[Dec]]) -> $35.00
A83: Salon/barber | B83: $25.00 | C83: $25.00 | D83: $25.00 | N83: =SUM(tblPersonal[[#This Row],[Jan]:[Dec]]) -> $75.00
A84: Books | N84: =SUM(tblPersonal[[#This Row],[Jan]:[Dec]]) -> $0.00
A85: Music (CDs, etc.) | N85: =SUM(tblPersonal[[#This Row],[Jan]:[Dec]]) -> $0.00
A86: Total | B86: =SUBTOTAL(109,tblPersonal[Jan]) -> $25.00 | C86: =SUBTOTAL(109,tblPersonal[Feb]) -> $60.00 | D86: =SUBTOTAL(109,tblPersonal[March]) -> $54.00 | E86: =SUBTOTAL(109,tblPersonal[April]) -> $0.00 | F86: =SUBTOTAL(109,tblPersonal[May]) -> $0.00 | G86: =SUBTOTAL(109,tblPersonal[June]) -> $0.00 | H86: =SUBTOTAL(109,tblPersonal[July]) -> $0.00 | I86: =SUBTOTAL(109,tblPersonal[Aug]) -> $0.00 | J86: =SUBTOTAL(109,tblPersonal[Sept]) -> $0.00 | K86: =SUBTOTAL(109,tblPersonal[Oct]) -> $0.00 | L86: =SUBTOTAL(109,tblPersonal[Nov]) -> $0.00 | M86: =SUBTOTAL(109,tblPersonal[Dec]) -> $0.00 | N86: =SUBTOTAL(109,tblPersonal[Year]) -> $139.00
A88: FINANCIAL OBLIGATIONS
A89: Long-term savings | B89: $25.00 | C89: $25.00 | D89: $25.00 | N89: =SUM(tblFinancial[[#This Row],[Jan]:[Dec]]) -> $75.00
A90: Retirement (401k, Roth IRA) | B90: $45.00 | C90: $45.00 | D90: $45.00 | N90: =SUM(tblFinancial[[#This Row],[Jan]:[Dec]]) -> $135.00
A91: Credit card payments | B91: $75.00 | C91: $75.00 | D91: $75.00 | N91: =SUM(tblFinancial[[#This Row],[Jan]:[Dec]]) -> $225.00
A92: Income tax (additional) | N92: =SUM(tblFinancial[[#This Row],[Jan]:[Dec]]) -> $0.00
A93: Other obligations | B93: $32.00 | C93: $34.00 | D93: $1.00 | N93: =SUM(tblFinancial[[#This Row],[Jan]:[Dec]]) -> $67.00
A94: Total | B94: =SUBTOTAL(109,tblFinancial[Jan]) -> $177.00 | C94: =SUBTOTAL(109,tblFinancial[Feb]) -> $179.00 | D94: =SUBTOTAL(109,tblFinancial[March]) -> $146.00 | E94: =SUBTOTAL(109,tblFinancial[April]) -> $0.00 | F94: =SUBTOTAL(109,tblFinancial[May]) -> $0.00 | G94: =SUBTOTAL(109,tblFinancial[June]) -> $0.00 | H94: =SUBTOTAL(109,tblFinancial[July]) -> $0.00 | I94: =SUBTOTAL(109,tblFinancial[Aug]) -> $0.00 | J94: =SUBTOTAL(109,tblFinancial[Sept]) -> $0.00 | K94: =SUBTOTAL(109,tblFinancial[Oct]) -> $0.00 | L94: =SUBTOTAL(109,tblFinancial[Nov]) -> $0.00 | M94: =SUBTOTAL(109,tblFinancial[Dec]) -> $0.00 | N94: =SUBTOTAL(109,tblFinancial[Year]) -> $502.00
A96: MISC PAYMENTS
A97: Other | N97: =SUM(tblMisc[[#This Row],[Jan]:[Dec]]) -> $0.00
A98: Other | N98: =SUM(tblMisc[[#This Row],[Jan]:[Dec]]) -> $0.00
A99: Other | N99: =SUM(tblMisc[[#This Row],[Jan]:[Dec]]) -> $0.00
A100: Other | N100: =SUM(tblMisc[[#This Row],[Jan]:[Dec]]) -> $0.00
A101: Other | N101: =SUM(tblMisc[[#This Row],[Jan]:[Dec]]) -> $0.00
A102: Total | B102: =SUBTOTAL(109,tblMisc[Jan]) -> $0.00 | C102: =SUBTOTAL(109,tblMisc[Feb]) -> $0.00 | D102: =SUBTOTAL(109,tblMisc[March]) -> $0.00 | E102: =SUBTOTAL(109,tblMisc[April]) -> $0.00 | F102: =SUBTOTAL(109,tblMisc[May]) -> $0.00 | G102: =SUBTOTAL(109,tblMisc[June]) -> $0.00 | H102: =SUBTOTAL(109,tblMisc[July]) -> $0.00 | I102: =SUBTOTAL(109,tblMisc[Aug]) -> $0.00 | J102: =SUBTOTAL(109,tblMisc[Sept]) -> $0.00 | K102: =SUBTOTAL(109,tblMisc[Oct]) -> $0.00 | L102: =SUBTOTAL(109,tblMisc[Nov]) -> $0.00 | M102: =SUBTOTAL(109,tblMisc[Dec]) -> $0.00 | N102: =SUBTOTAL(109,tblMisc[Year]) -> $0.00
A104: TOTALS | B104: JAN | C104: FEB | D104: MAR | E104: APR | F104: MAY | G104: JUN | H104: JUL | I104: AUG | J104: SEP | K104: OCT | L104: NOV | M104: DEC | N104: YEAR
A105: Total expenses | B105: =SUM(tblMisc[[#Totals],[Jan]],tblFinancial[[#Totals],[Jan]],tblPersonal[[#Totals],[Jan]],tblDues[[#Totals],[Jan]],tblRecreation[[#Totals],[Jan]],tblVacations[[#Totals],[Jan]],tblHealth[[#Totals],[Jan]],tblEntertainment[[#Totals],[Jan]],tblTransportation[[#Totals],[Jan]],tblDaily[[#Totals],[Jan]],tblHome[[#Totals],[Jan]]) -> $2,687.00 | C105: =SUM(tblMisc[[#Totals],[Feb]],tblFinancial[[#Totals],[Feb]],tblPersonal[[#Totals],[Feb]],tblDues[[#Totals],[Feb]],tblRecreation[[#Totals],[Feb]],tblVacations[[#Totals],[Feb]],tblHealth[[#Totals],[Feb]],tblEntertainment[[#Totals],[Feb]],tblTransportation[[#Totals],[Feb]],tblDaily[[#Totals],[Feb]],tblHome[[#Totals],[Feb]]) -> $3,429.00 | D105: =SUM(tblMisc[[#Totals],[March]],tblFinancial[[#Totals],[March]],tblPersonal[[#Totals],[March]],tblDues[[#Totals],[March]],tblRecreation[[#Totals],[March]],tblVacations[[#Totals],[March]],tblHealth[[#Totals],[March]],tblEntertainment[[#Totals],[March]],tblTransportation[[#Totals],[March]],tblDaily[[#Totals],[March]],tblHome[[#Totals],[March]]) -> $2,718.00 | E105: =SUM(tblMisc[[#Totals],[April]],tblFinancial[[#Totals],[April]],tblPersonal[[#Totals],[April]],tblDues[[#Totals],[April]],tblRecreation[[#Totals],[April]],tblVacations[[#Totals],[April]],tblHealth[[#Totals],[April]],tblEntertainment[[#Totals],[April]],tblTransportation[[#Totals],[April]],tblDaily[[#Totals],[April]],tblHome[[#Totals],[April]]) -> $0.00 | F105: =SUM(tblMisc[[#Totals],[May]],tblFinancial[[#Totals],[May]],tblPersonal[[#Totals],[May]],tblDues[[#Totals],[May]],tblRecreation[[#Totals],[May]],tblVacations[[#Totals],[May]],tblHealth[[#Totals],[May]],tblEntertainment[[#Totals],[May]],tblTransportation[[#Totals],[May]],tblDaily[[#Totals],[May]],tblHome[[#Totals],[May]]) -> $0.00 | G105: =SUM(tblMisc[[#Totals],[June]],tblFinancial[[#Totals],[June]],tblPersonal[[#Totals],[June]],tblDues[[#Totals],[June]],tblRecreation[[#Totals],[June]],tblVacations[[#Totals],[June]],tblHealth[[#Totals],[June]],tblEntertainment[[#Totals],[June]],tblTransportation[[#Totals],[June]],tblDaily[[#Totals],[June]],tblHome[[#Totals],[June]]) -> $0.00 | H105: =SUM(tblMisc[[#Totals],[July]],tblFinancial[[#Totals],[July]],tblPersonal[[#Totals],[July]],tblDues[[#Totals],[July]],tblRecreation[[#Totals],[July]],tblVacations[[#Totals],[July]],tblHealth[[#Totals],[July]],tblEntertainment[[#Totals],[July]],tblTransportation[[#Totals],[July]],tblDaily[[#Totals],[July]],tblHome[[#Totals],[July]]) -> $0.00 | I105: =SUM(tblMisc[[#Totals],[Aug]],tblFinancial[[#Totals],[Aug]],tblPersonal[[#Totals],[Aug]],tblDues[[#Totals],[Aug]],tblRecreation[[#Totals],[Aug]],tblVacations[[#Totals],[Aug]],tblHealth[[#Totals],[Aug]],tblEntertainment[[#Totals],[Aug]],tblTransportation[[#Totals],[Aug]],tblDaily[[#Totals],[Aug]],tblHome[[#Totals],[Aug]]) -> $0.00 | J105: =SUM(tblMisc[[#Totals],[Sept]],tblFinancial[[#Totals],[Sept]],tblPersonal[[#Totals],[Sept]],tblDues[[#Totals],[Sept]],tblRecreation[[#Totals],[Sept]],tblVacations[[#Totals],[Sept]],tblHealth[[#Totals],[Sept]],tblEntertainment[[#Totals],[Sept]],tblTransportation[[#Totals],[Sept]],tblDaily[[#Totals],[Sept]],tblHome[[#Totals],[Sept]]) -> $0.00 | K105: =SUM(tblMisc[[#Totals],[Oct]],tblFinancial[[#Totals],[Oct]],tblPersonal[[#Totals],[Oct]],tblDues[[#Totals],[Oct]],tblRecreation[[#Totals],[Oct]],tblVacations[[#Totals],[Oct]],tblHealth[[#Totals],[Oct]],tblEntertainment[[#Totals],[Oct]],tblTransportation[[#Totals],[Oct]],tblDaily[[#Totals],[Oct]],tblHome[[#Totals],[Oct]]) -> $0.00 | L105: =SUM(tblMisc[[#Totals],[Nov]],tblFinancial[[#Totals],[Nov]],tblPersonal[[#Totals],[Nov]],tblDues[[#Totals],[Nov]],tblRecreation[[#Totals],[Nov]],tblVacations[[#Totals],[Nov]],tblHealth[[#Totals],[Nov]],tblEntertainment[[#Totals],[Nov]],tblTransportation[[#Totals],[Nov]],tblDaily[[#Totals],[Nov]],tblHome[[#Totals],[Nov]]) -> $0.00 | M105: =SUM(tblMisc[[#Totals],[Dec]],tblFinancial[[#Totals],[Dec]],tblPersonal[[#Totals],[Dec]],tblDues[[#Totals],[Dec]],tblRecreation[[#Totals],[Dec]],tblVacations[[#Totals],[Dec]],tblHealth[[#Totals],[Dec]],tblEntertainment[[#Totals],[Dec]],tblTransportation[[#Totals],[Dec]],tblDaily[[#Totals],[Dec]],tblHome[[#Totals],[Dec]]) -> $0.00 | N105: =SUM(tblMisc[[#Totals],[Year]],tblFinancial[[#Totals],[Year]],tblPersonal[[#Totals],[Year]],tblDues[[#Totals],[Year]],tblRecreation[[#Totals],[Year]],tblVacations[[#Totals],[Year]],tblHealth[[#Totals],[Year]],tblEntertainment[[#Totals],[Year]],tblTransportation[[#Totals],[Year]],tblDaily[[#Totals],[Year]],tblHome[[#Totals],[Year]]) -> $8,834.00
A106: Cash short/extra | B106: =tblIncome[[#Totals],[Jan]]-B105 -> $1,036.00 | C106: =tblIncome[[#Totals],[Feb]]-C105 -> $127.00 | D106: =tblIncome[[#Totals],[March]]-D105 -> $926.00 | E106: =tblIncome[[#Totals],[April]]-E105 -> $0.00 | F106: =tblIncome[[#Totals],[May]]-F105 -> $0.00 | G106: =tblIncome[[#Totals],[June]]-G105 -> $0.00 | H106: =tblIncome[[#Totals],[July]]-H105 -> $0.00 | I106: =tblIncome[[#Totals],[Aug]]-I105 -> $0.00 | J106: =tblIncome[[#Totals],[Sept]]-J105 -> $0.00 | K106: =tblIncome[[#Totals],[Oct]]-K105 -> $0.00 | L106: =tblIncome[[#Totals],[Nov]]-L105 -> $0.00 | M106: =tblIncome[[#Totals],[Dec]]-M105 -> $0.00 | N106: =tblIncome[[#Totals],[Year]]-N105 -> $2,089.00
